fUST/lending_fUST_20250829
["ID","MTS","AMOUNT","RATE_DAILY","PERIOD"]
[381916297,1756405856723,-480.0,0.00020273,2]
[381916298,1756405856732,-480.0,0.00020273,2]
[381916299,1756405856741,-480.0,0.00020273,2]
[381916300,1756405856750,-480.0,0.00020273,2]
[381916301,1756405856760,-480.0,0.00020273,2]
[381916302,1756405856770,-480.0,0.00020273,2]
[381916303,1756405856779,-547.67581536,0.00020273,2]
[381916304,1756405856788,-480.0,0.00020273,2]
[381916305,1756405856798,-482.42,0.00020273,2]
[381916306,1756405856807,-480.0,0.00020273,2]
[381916307,1756405856817,-480.0,0.00020273,2]
[381916308,1756405856826,-480.0,0.00020273,2]
[381916309,1756405856835,-480.0,0.00020273,2]
[381916310,1756405856844,-195.247387,0.00020273,2]
[381916311,1756405856853,-480.0,0.00020273,2]
[381916312,1756405856863,-151.0,0.00020273,2]
[381916313,1756405856872,-609.92,0.00020273,2]
[381916314,1756405856882,-151.0,0.00020273,2]
[381916315,1756405856892,-151.0,0.00020273,2]
[381916316,1756405856902,-151.0,0.00020273,2]
[381916317,1756405856911,-151.0,0.00020273,2]
[381916318,1756405856920,-481.8,0.00020273,2]
[381916319,1756405856929,-1158.74,0.00020273,2]
[381916320,1756405856939,-480.0,0.00020273,2]
[381916321,1756405856948,-480.0,0.00020273,2]
[381916322,1756405856958,-480.0,0.00020273,2]
[381916323,1756405856967,-480.0,0.00020273,2]
[381916324,1756405856977,-151.0,0.00020273,2]
[381916325,1756405856987,-1034.72,0.00020273,2]
[381916326,1756405856996,-480.0,0.00020273,2]
[381916327,1756405857006,-480.0,0.00020273,2]
[381916328,1756405857015,-511.2,0.00020273,2]
[381916329,1756405857026,-480.0,0.00020273,2]
[381916330,1756405857035,-480.0,0.00020273,2]
[381916331,1756405857045,-480.0,0.00020273,2]
[381916332,1756405857054,-480.0,0.00020273,2]
[381916333,1756405857064,-480.0,0.00020273,2]
[381916334,1756405857073,-480.0,0.00020273,2]
[381916335,1756405857083,-655.73,0.00020273,2]
[381916336,1756405857092,-480.0,0.00020273,2]
[381916337,1756405857101,-480.0,0.00020273,2]
[381916338,1756405857113,-858.56,0.00020273,2]
[381916339,1756405857123,-818.94,0.00020273,2]
[381916340,1756405857132,-538.59162245,0.00020273,2]
[381916341,1756405857141,-480.0,0.00020273,2]
[381916342,1756405857150,-480.0,0.00020273,2]
[381916343,1756405857160,-480.0,0.00020273,2]
[381916344,1756405857169,-235.85,0.00020273,2]
[381916345,1756405857178,-629.0815396,0.00020273,2]
[381916346,1756405857187,-1104.1,0.00020273,2]
[381916347,1756405857196,-480.0,0.00020273,2]
[381916348,1756405857206,-480.0,0.00020273,2]
[381916349,1756405857216,-480.0,0.00020273,2]
[381916350,1756405857225,-480.0,0.00020273,2]
[381916351,1756405857234,-480.0,0.00020273,2]
[381916352,1756405857244,-181.74,0.00020273,2]
[381916353,1756405857254,-480.0,0.00020273,2]
[381916354,1756405857263,-480.0,0.00020273,2]
[381916355,1756405857273,-480.0,0.00020273,2]
[381916356,1756405857282,-1810.79,0.00020273,2]
[381916357,1756405857292,-480.0,0.00020273,2]
[381916358,1756405857301,-480.0,0.00020273,2]
[381916359,1756405857311,-480.0,0.00020273,2]
[381916360,1756405857320,-480.0,0.00020273,2]
[381916361,1756405857329,-480.0,0.00020273,2]
[381916362,1756405857338,-610.65,0.00020273,2]
[381916363,1756405857348,-480.0,0.00020273,2]
[381916364,1756405857358,-480.0,0.00020273,2]
[381916365,1756405857369,-480.0,0.00020273,2]
[381916366,1756405857378,-480.0,0.00020273,2]
[381916367,1756405857387,-561.61,0.00020273,2]
[381916368,1756405857397,-480.0,0.00020273,2]
[381916369,1756405857407,-480.0,0.00020273,2]
[381916370,1756405857416,-480.0,0.00020273,2]
[381916371,1756405857426,-480.0,0.00020273,2]
[381916372,1756405857435,-480.0,0.00020273,2]
[381916373,1756405857444,-480.0,0.00020273,2]
[381916374,1756405857453,-480.0,0.00020273,2]
[381916375,1756405857463,-219.14901394,0.00020273,2]
[381916376,1756405857472,-515.85,0.00020273,2]
[381916377,1756405857481,-480.0,0.00020273,2]
[381916378,1756405857491,-480.0,0.00020273,2]
[381916379,1756405857500,-480.0,0.00020273,2]
[381916380,1756405857510,-480.0,0.00020273,2]
[381916381,1756405857521,-480.0,0.00020273,2]
[381916382,1756405857531,-543.58,0.00020273,2]
[381916383,1756405857540,-480.0,0.00020273,2]
[381916384,1756405857550,-538.53,0.00020273,2]
[381916385,1756405857560,-483.76,0.00020273,2]
[381916386,1756405857570,-480.0,0.00020273,2]
[381916387,1756405857579,-480.0,0.00020273,2]
[381916388,1756405857589,-480.0,0.00020273,2]
[381916389,1756405857600,-480.0,0.00020273,2]
[381916390,1756405857611,-480.0,0.00020273,2]
[381916391,1756405857620,-480.0,0.00020273,2]
[381916392,1756405857629,-551.42,0.00020273,2]
[381916393,1756405857639,-480.0,0.00020273,2]
[381916394,1756405857648,-1000.0,0.00020321,2]
[381916395,1756405857659,-236.1250576,0.00020393,2]
[381916396,1756405857668,-160.0,0.00020441,2]
[381916397,1756405857677,-769.12206302,0.00020448,2]
[381916398,1756405857687,-444.94460097,0.00020546,2]
[381916399,1756405857697,-480.0,0.00020547,2]
[381916400,1756405857705,-480.0,0.00020547,2]
[381916401,1756405857715,-549.14,0.00020547,2]
[381916402,1756405857725,-527.73,0.00020547,2]
[381916403,1756405857735,-480.0,0.00020547,2]
[381916404,1756405857745,-452.77174983,0.00020547,2]
[381916405,1756405857755,-480.0,0.00020547,2]
[381916406,1756405857764,-315.11,0.00020547,2]
[381916407,1756405857774,-480.0,0.00020547,2]
[381916408,1756405857783,-480.0,0.00020547,2]
[381916409,1756405857792,-480.0,0.00020547,2]
[381916410,1756405857801,-480.0,0.00020547,2]
[381916411,1756405857810,-480.0,0.00020547,2]
[381916412,1756405857820,-480.0,0.00020547,2]
[381916413,1756405857829,-535.01,0.00020547,2]
[381916414,1756405857838,-480.0,0.00020547,2]
[381916415,1756405857847,-480.0,0.00020547,2]
[381916416,1756405857856,-480.0,0.00020547,2]
[381916417,1756405857866,-480.0,0.00020547,2]
[381916418,1756405857875,-480.0,0.00020547,2]
[381916419,1756405857885,-480.0,0.00020547,2]
[381916420,1756405857894,-480.0,0.00020547,2]
[381916421,1756405857903,-480.0,0.00020547,2]
[381916422,1756405857912,-480.0,0.00020547,2]
[381916423,1756405857921,-481.36,0.00020547,2]
[381916424,1756405857931,-480.0,0.00020547,2]
[381916425,1756405857942,-480.0,0.00020547,2]
[381916426,1756405857951,-480.0,0.00020547,2]
[381916427,1756405857961,-462.5,0.00020547,2]
[381916428,1756405857971,-480.0,0.00020547,2]
[381916429,1756405858091,-480.0,0.00020547,2]
[381916430,1756405858101,-480.0,0.00020547,2]
[381916431,1756405858111,-480.0,0.00020547,2]
[381916432,1756405858121,-211.77244617,0.00020547,2]
[381916433,1756405858130,-480.0,0.00020547,2]
[381916434,1756405858140,-480.0,0.00020547,2]
[381916435,1756405858149,-480.0,0.00020547,2]
[381916436,1756405858158,-212.582853,0.00020547,2]
[381916437,1756405858167,-212.582853,0.00020547,2]
[381916438,1756405858177,-151.0,0.00020547,2]
[381916439,1756405858186,-637.4,0.00020547,2]
[381916440,1756405858196,-212.582853,0.00020547,2]
[381916441,1756405858205,-699.97,0.00020547,2]
[381916442,1756405858214,-212.582853,0.00020547,2]
[381916443,1756405858224,-151.0,0.00020547,2]
[381916444,1756405858233,-196.445439,0.00020547,2]
[381916445,1756405858243,-151.0,0.00020547,2]
[381916446,1756405858252,-196.445439,0.00020547,2]
[381916447,1756405858262,-151.0,0.00020547,2]
[381916448,1756405858272,-650.38,0.00020547,2]
[381916449,1756405858282,-196.445439,0.00020547,2]
[381916450,1756405858291,-480.0,0.00020547,2]
[381916451,1756405858301,-196.445439,0.00020547,2]
[381916452,1756405858311,-591.67,0.00020547,2]
[381916453,1756405858320,-151.0,0.00020547,2]
[381916454,1756405858330,-151.0,0.00020547,2]
[381916455,1756405858340,-151.0,0.00020547,2]
[381916456,1756405858349,-151.0,0.00020547,2]
[381916457,1756405858359,-708.34,0.00020547,2]
[381916458,1756405858372,-151.0,0.00020547,2]
[381916459,1756405858381,-151.0,0.00020547,2]
[381916460,1756405858391,-503.09,0.00020547,2]
[381916461,1756405858401,-480.0,0.00020547,2]
[381916462,1756405858411,-927.02,0.00020547,2]
[381916463,1756405858423,-480.0,0.00020547,2]
[381916464,1756405858433,-480.0,0.00020547,2]
[381916465,1756405858443,-480.0,0.00020547,2]
[381916466,1756405858452,-480.0,0.00020547,2]
[381916467,1756405858461,-480.0,0.00020547,2]
[381916468,1756405858471,-603.15,0.00020547,2]
[381916469,1756405858480,-480.0,0.00020547,2]
[381916470,1756405858489,-482.42,0.00020547,2]
[381916471,1756405858499,-480.0,0.00020547,2]
[381916472,1756405858508,-480.0,0.00020547,2]
[381916473,1756405858519,-480.0,0.00020547,2]
[381916474,1756405858530,-480.0,0.00020547,2]
[381916475,1756405858540,-1158.74,0.00020547,2]
[381916476,1756405858550,-480.0,0.00020547,2]
[381916477,1756405858559,-480.0,0.00020547,2]
[381916478,1756405858569,-480.0,0.00020547,2]
[381916479,1756405858579,-480.0,0.00020547,2]
[381916480,1756405858588,-1034.72,0.00020547,2]
[381916481,1756405858599,-480.0,0.00020547,2]
[381916482,1756405858609,-480.0,0.00020547,2]
[381916483,1756405858621,-480.0,0.00020547,2]
[381916484,1756405858630,-480.0,0.00020547,2]
[381916485,1756405858640,-480.0,0.00020547,2]
[381916486,1756405858649,-480.0,0.00020547,2]
[381916487,1756405858659,-655.73,0.00020547,2]
[381916488,1756405858669,-480.0,0.00020547,2]
[381916489,1756405858678,-858.56,0.00020547,2]
[381916490,1756405858688,-818.94,0.00020547,2]
[381916491,1756405858698,-483.83,0.00020547,2]
[381916492,1756405858707,-480.0,0.00020547,2]
[381916493,1756405858716,-1104.1,0.00020547,2]
[381916494,1756405858725,-480.0,0.00020547,2]
[381916495,1756405858735,-285.676259,0.00020547,2]
[381916496,1756405858745,-480.0,0.00020547,2]
[381916497,1756405858755,-480.0,0.00020547,2]
[381916498,1756405858764,-480.0,0.00020547,2]
[381916499,1756405858774,-151.0,0.00020547,2]
[381916500,1756405858783,-841.534623,0.00020547,2]
[381916501,1756405858793,-200.270326,0.00020547,2]
[381916502,1756405858802,-480.0,0.00020547,2]
[381916503,1756405858812,-200.270326,0.00020547,2]
[381916504,1756405858821,-841.534623,0.00020547,2]
[381916505,1756405858831,-200.270326,0.00020547,2]
[381916506,1756405858840,-841.534623,0.00020547,2]
[381916507,1756405858850,-480.0,0.00020547,2]
[381916508,1756405858859,-841.534623,0.00020547,2]
[381916509,1756405858869,-200.270326,0.00020547,2]
[381916510,1756405858879,-1810.79,0.00020547,2]
[381916511,1756405858889,-480.0,0.00020547,2]
[381916512,1756405858898,-480.0,0.00020547,2]
[381916513,1756405858908,-480.0,0.00020547,2]
[381916514,1756405858917,-480.0,0.00020547,2]
[381916515,1756405858926,-283.31792,0.00020547,2]
[381916516,1756405858936,-480.0,0.00020547,2]
[381916517,1756405858945,-499.24,0.00020547,2]
[381916518,1756405858955,-561.61,0.00020547,2]
[381916519,1756405858965,-480.0,0.00020547,2]
[381916520,1756405858975,-480.0,0.00020547,2]
[381916521,1756405858984,-480.0,0.00020547,2]
[381916522,1756405858994,-480.0,0.00020547,2]
[381916523,1756405859003,-480.0,0.00020547,2]
[381916524,1756405859013,-601.803654,0.00020547,2]
[381916525,1756405859026,-601.803654,0.00020547,2]
[381916526,1756405859035,-601.803654,0.00020547,2]
[381916527,1756405859045,-480.0,0.00020547,2]
[381916528,1756405859054,-480.0,0.00020547,2]
[381916529,1756405859063,-601.803654,0.00020547,2]
[381916530,1756405859073,-480.0,0.00020547,2]
[381916531,1756405859083,-480.0,0.00020547,2]
[381916532,1756405859092,-480.0,0.00020547,2]
[381916533,1756405859101,-480.0,0.00020547,2]
[381916534,1756405859111,-538.53,0.00020547,2]
[381916535,1756405859121,-483.76,0.00020547,2]
[381916536,1756405859130,-480.0,0.00020547,2]
[381916537,1756405859140,-546.07,0.00020547,2]
[381916538,1756405859150,-480.0,0.00020547,2]
[381916539,1756405859159,-480.0,0.00020547,2]
[381916540,1756405859168,-480.0,0.00020547,2]
[381916541,1756405859178,-480.0,0.00020547,2]
[381916542,1756405859187,-5000.0,0.00020567,2]
[381916543,1756405859197,-151.0,0.00020567,2]
[381916544,1756405859206,-151.0,0.00020567,2]
[381916545,1756405859216,-151.0,0.00020567,2]
[381916546,1756405859226,-151.0,0.00020567,2]
[381916547,1756405859236,-151.0,0.00020567,2]
[381916548,1756405859246,-151.0,0.00020567,2]
[381916549,1756405859255,-1500.0,0.00020568,2]
[381916550,1756405859265,-500.0,0.00020568,2]
[381916551,1756405859274,-500.0,0.00020568,2]
[381916552,1756405859284,-500.0,0.00020568,2]
[381916553,1756405859294,-1500.0,0.00020568,2]
[381916554,1756405859303,-500.0,0.00020568,2]
[381916555,1756405859313,-499.30307551,0.00020568,2]
[381916556,1756405859322,-1020.03551996,0.00020568,2]
[381916557,1756405859332,-1500.0,0.00020568,2]
[381916558,1756405859341,-1500.0,0.00020568,2]
[381916559,1756405859351,-500.0,0.00020568,2]
[381916560,1756405859360,-2347.87260389,0.00020637,2]
[381916561,1756405859370,-187.78006525,0.00020637,2]
[381916562,1756405859380,-2434.74389024,0.00020692,2]
[381916563,1756405859390,-2524.82941417,0.00020747,2]
[381916564,1756405859399,-420.0,0.00020792,2]
[381916565,1756405859410,-2618.2481025,0.00020802,2]
[381916566,1756405859420,-2000.0,0.00020816,2]
[381916567,1756405859430,-2000.0,0.00020816,2]
[381916568,1756405859439,-2000.0,0.00020816,2]
[381916569,1756405859448,-2021.25177441,0.00020816,2]
[381916570,1756405859458,-222.28,0.00020821,2]
[381916571,1756405859468,-480.0,0.00020821,2]
[381916572,1756405859478,-480.0,0.00020821,2]
[381916573,1756405859488,-552.1,0.00020821,2]
[381916574,1756405859497,-480.0,0.00020821,2]
[381916575,1756405859507,-566.52841343,0.00020821,2]
[381916576,1756405859519,-480.0,0.00020821,2]
[381916577,1756405859530,-480.0,0.00020821,2]
[381916578,1756405859539,-480.0,0.00020821,2]
[381916579,1756405859549,-480.0,0.00020821,2]
[381916580,1756405859559,-480.0,0.00020821,2]
[381916581,1756405859568,-480.0,0.00020821,2]
[381916582,1756405859578,-480.0,0.00020821,2]
[381916583,1756405859588,-480.0,0.00020821,2]
[381916584,1756405859599,-480.0,0.00020821,2]
[381916585,1756405859610,-584.0,0.00020821,2]
[381916586,1756405859621,-480.0,0.00020821,2]
[381916587,1756405859632,-476.82,0.00020821,2]
[381916588,1756405859641,-480.0,0.00020821,2]
[381916589,1756405859651,-480.0,0.00020821,2]
[381916590,1756405859661,-637.4,0.00020821,2]
[381916591,1756405859672,-699.97,0.00020821,2]
[381916592,1756405859683,-650.38,0.00020821,2]
[381916593,1756405859899,-708.34,0.00020821,2]
[381916594,1756405859910,-503.09,0.00020821,2]
[381916595,1756405859920,-480.0,0.00020821,2]
[381916596,1756405859929,-927.02,0.00020821,2]
[381916597,1756405859939,-480.0,0.00020821,2]
[381916598,1756405859948,-480.0,0.00020821,2]
[381916599,1756405859957,-480.0,0.00020821,2]
[381916600,1756405859967,-480.0,0.00020821,2]
[381916601,1756405859976,-548.61,0.00020821,2]
[381916602,1756405859985,-482.42,0.00020821,2]
[381916603,1756405859994,-480.0,0.00020821,2]
[381916604,1756405860003,-480.0,0.00020821,2]
[381916605,1756405860014,-480.0,0.00020821,2]
[381916606,1756405860023,-183.4,0.00020821,2]
[381916607,1756405860034,-1158.74,0.00020821,2]
[381916608,1756405860043,-480.0,0.00020821,2]
[381916609,1756405860054,-179.88,0.00020821,2]
[381916610,1756405860063,-480.0,0.00020821,2]
[381916611,1756405860073,-480.0,0.00020821,2]
[381916612,1756405860083,-1034.72,0.00020821,2]
[381916613,1756405860092,-480.0,0.00020821,2]
[381916614,1756405860102,-480.0,0.00020821,2]
[381916615,1756405860113,-480.0,0.00020821,2]
[381916616,1756405860123,-480.0,0.00020821,2]
[381916617,1756405860133,-199.88,0.00020821,2]
[381916618,1756405860143,-315.66874638,0.00020821,2]
[381916619,1756405860152,-655.73,0.00020821,2]
[381916620,1756405860162,-480.0,0.00020821,2]
[381916621,1756405860171,-858.56,0.00020821,2]
[381916622,1756405860181,-818.94,0.00020821,2]
[381916623,1756405860190,-480.0,0.00020821,2]
[381916624,1756405860200,-1104.1,0.00020821,2]
[381916625,1756405860210,-480.0,0.00020821,2]
[381916626,1756405860219,-480.0,0.00020821,2]
[381916627,1756405860229,-480.0,0.00020821,2]
[381916628,1756405860239,-480.0,0.00020821,2]
[381916629,1756405860248,-1810.79,0.00020821,2]
[381916630,1756405860258,-480.0,0.00020821,2]
[381916631,1756405860268,-480.0,0.00020821,2]
[381916632,1756405860277,-601.33,0.00020821,2]
[381916633,1756405860286,-480.0,0.00020821,2]
[381916634,1756405860296,-390.10263995,0.00020821,2]
[381916635,1756405860306,-561.61,0.00020821,2]
[381916636,1756405860315,-480.0,0.00020821,2]
[381916637,1756405860324,-480.0,0.00020821,2]
[381916638,1756405860334,-544.23,0.00020821,2]
[381916639,1756405860344,-480.0,0.00020821,2]
[381916640,1756405860354,-480.0,0.00020821,2]
[381916641,1756405860365,-480.0,0.00020821,2]
[381916642,1756405860375,-480.0,0.00020821,2]
[381916643,1756405860384,-480.0,0.00020821,2]
[381916644,1756405860394,-538.53,0.00020821,2]
[381916645,1756405860404,-483.76,0.00020821,2]
[381916646,1756405860414,-480.0,0.00020821,2]
[381916647,1756405860424,-480.0,0.00020821,2]
[381916648,1756405860433,-215.69587504,0.00020821,2]
[381916649,1756405860443,-480.0,0.00020821,2]
[381916650,1756405860453,-2715.12328229,0.00020857,2]
[381916651,1756405860462,-500.0,0.00020908,2]
[381916652,1756405860471,-500.0,0.00020908,2]
[381916653,1756405860481,-500.0,0.00020908,2]
[381916654,1756405860492,-2815.58284374,0.00020912,2]
[381916655,1756405860501,-1194.86935603,0.00020967,2]
[381916656,1756405860511,-260.0,0.00020989,2]
[381916657,1756405860522,-150.999999,0.00021,2]
[381916658,1756405860532,-197.35,0.00021095,2]
[381916659,1756405860541,-484.33,0.00021095,2]
[381916660,1756405860551,-305.81,0.00021095,2]
[381916661,1756405860560,-480.0,0.00021095,2]
[381916662,1756405860570,-606.49,0.00021095,2]
[381916663,1756405860579,-480.0,0.00021095,2]
[381916664,1756405860588,-175.64,0.00021095,2]
[381916665,1756405860598,-480.0,0.00021095,2]
[381916666,1756405860607,-480.0,0.00021095,2]
[381916667,1756405860618,-480.0,0.00021095,2]
[381916668,1756405860627,-480.0,0.00021095,2]
[381916669,1756405860637,-637.4,0.00021095,2]
[381916670,1756405860647,-699.97,0.00021095,2]
[381916671,1756405860656,-650.38,0.00021095,2]
[381916672,1756405860666,-708.34,0.00021095,2]
[381916673,1756405860675,-503.09,0.00021095,2]
[381916674,1756405860685,-207.43,0.00021095,2]
[381916675,1756405860694,-927.02,0.00021095,2]
[381916676,1756405860704,-342.95215833,0.00021095,2]
[381916677,1756405860714,-410.8,0.00021095,2]
[381916678,1756405860723,-605.39,0.00021095,2]
[381916679,1756405860733,-482.42,0.00021095,2]
[381916680,1756405860742,-480.0,0.00021095,2]
[381916681,1756405860751,-480.0,0.00021095,2]
[381916682,1756405860761,-480.0,0.00021095,2]
[381916683,1756405860771,-1158.74,0.00021095,2]
[381916684,1756405860780,-480.0,0.00021095,2]
[381916685,1756405860790,-480.0,0.00021095,2]
[381916686,1756405860799,-564.74,0.00021095,2]
[381916687,1756405860809,-1034.72,0.00021095,2]
[381916688,1756405860923,-536.52,0.00021095,2]
[381916689,1756405860933,-480.0,0.00021095,2]
[381916690,1756405860943,-480.0,0.00021095,2]
[381916691,1756405860952,-655.73,0.00021095,2]
[381916692,1756405860961,-480.0,0.00021095,2]
[381916693,1756405860971,-858.56,0.00021095,2]
[381916694,1756405860980,-818.94,0.00021095,2]
[381916695,1756405860990,-480.0,0.00021095,2]
[381916696,1756405860999,-1104.1,0.00021095,2]
[381916697,1756405861009,-480.0,0.00021095,2]
[381916698,1756405861019,-480.0,0.00021095,2]
[381916699,1756405861029,-358.76,0.00021095,2]
[381916700,1756405861038,-1810.79,0.00021095,2]
[381916701,1756405861047,-153.84,0.00021095,2]
[381916702,1756405861057,-156.58,0.00021095,2]
[381916703,1756405861067,-480.0,0.00021095,2]
[381916704,1756405861082,-561.61,0.00021095,2]
[381916705,1756405861092,-479.2,0.00021095,2]
[381916706,1756405861101,-480.0,0.00021095,2]
[381916707,1756405861111,-480.0,0.00021095,2]
[381916708,1756405861122,-480.0,0.00021095,2]
[381916709,1756405861132,-480.0,0.00021095,2]
[381916710,1756405861142,-480.0,0.00021095,2]
[381916711,1756405861152,-480.0,0.00021095,2]
[381916712,1756405861162,-538.53,0.00021095,2]
[381916713,1756405861172,-483.76,0.00021095,2]
[381916714,1756405861181,-480.0,0.00021095,2]
[381916715,1756405861191,-480.0,0.00021095,2]
[381916716,1756405861201,-480.0,0.00021095,2]
[381916717,1756405861210,-2000.0,0.00021116,2]
[381916718,1756405861219,-212.582853,0.00021263,2]
[381916719,1756405861229,-212.582853,0.00021263,2]
[381916720,1756405861239,-151.0,0.00021263,2]
[381916721,1756405861248,-212.582853,0.00021263,2]
[381916722,1756405861259,-212.582853,0.00021263,2]
[381916723,1756405861270,-151.0,0.00021263,2]
[381916724,1756405861291,-196.445439,0.00021263,2]
[381916725,1756405861314,-151.0,0.00021263,2]
[381916726,1756405861327,-196.445439,0.00021263,2]
[381916727,1756405861336,-151.0,0.00021263,2]
[381916728,1756405861346,-196.445439,0.00021263,2]
[381916729,1756405861355,-196.445439,0.00021263,2]
[381916730,1756405861364,-151.0,0.00021263,2]
[381916731,1756405861374,-151.0,0.00021263,2]
[381916732,1756405861383,-151.0,0.00021263,2]
[381916733,1756405861393,-151.0,0.00021263,2]
[381916734,1756405861402,-258.367813,0.00021263,2]
[381916735,1756405861412,-194.080422,0.00021263,2]
[381916736,1756405861421,-1000.0,0.00021263,2]
[381916737,1756405861433,-1000.0,0.00021263,2]
[381916738,1756405861443,-1000.0,0.00021263,2]
[381916739,1756405861453,-1000.0,0.00021263,2]
[381916740,1756405861462,-1000.0,0.00021263,2]
[381916741,1756405861472,-1000.0,0.00021263,2]
[381916742,1756405861481,-1000.0,0.00021263,2]
[381916743,1756405861491,-1000.0,0.00021263,2]
[381916744,1756405861501,-1000.0,0.00021263,2]
[381916745,1756405861511,-1000.0,0.00021263,2]
[381916746,1756405861524,-1000.0,0.00021263,2]
[381916747,1756405861533,-1000.0,0.00021263,2]
[381916748,1756405861543,-511.008133,0.00021263,2]
[381916749,1756405861553,-237.326388,0.00021263,2]
[381916750,1756405861563,-151.0,0.00021263,2]
[381916751,1756405861572,-151.0,0.00021263,2]
[381916752,1756405861582,-151.0,0.00021263,2]
[381916753,1756405861592,-288.321397,0.00021263,2]
[381916754,1756405861603,-151.0,0.00021263,2]
[381916755,1756405861614,-200.270326,0.00021263,2]
[381916756,1756405861624,-841.534623,0.00021263,2]
[381916757,1756405861634,-200.270326,0.00021263,2]
[381916758,1756405861643,-841.534623,0.00021263,2]
[381916759,1756405861654,-200.270326,0.00021263,2]
[381916760,1756405861664,-841.534623,0.00021263,2]
[381916761,1756405861674,-841.53462131,0.00021263,2]
[381916762,1756405861683,-200.270321,0.00021263,2]
[381916763,1756405861693,-601.803654,0.00021263,2]
[381916764,1756405861703,-601.803654,0.00021263,2]
[381916765,1756405861712,-601.803654,0.00021263,2]
[381916766,1756405861721,-601.803656,0.00021263,2]
[381916767,1756405861731,-100000.0,0.00021263,2]
[381916768,1756405861740,-974.0,0.0002132,2]
[381916769,1756405861749,-632.0,0.0002132,2]
[381916770,1756405861759,-2151.0,0.0002132,2]
[381916771,1756405861768,-409.0,0.0002132,2]
[381916772,1756405861777,-417.947,0.0002132,2]
[381916773,1756405861787,-1798.21580705,0.00021364,2]
[381916774,1756405861797,-1054.73448653,0.00021364,2]
[381916775,1756405861806,-500.0,0.00021364,2]
[381916776,1756405861816,-480.0,0.00021369,2]
[381916777,1756405861825,-480.0,0.00021369,2]
[381916778,1756405861835,-480.0,0.00021369,2]
[381916779,1756405861844,-172.55,0.00021369,2]
[381916780,1756405861853,-637.4,0.00021369,2]
[381916781,1756405861862,-699.97,0.00021369,2]
[381916782,1756405861873,-650.38,0.00021369,2]
[381916783,1756405861883,-708.34,0.00021369,2]
[381916784,1756405861895,-503.09,0.00021369,2]
[381916785,1756405861905,-927.02,0.00021369,2]
[381916786,1756405861914,-482.42,0.00021369,2]
[381916787,1756405861924,-480.0,0.00021369,2]
[381916788,1756405861933,-480.0,0.00021369,2]
[381916789,1756405861943,-1158.74,0.00021369,2]
[381916790,1756405861952,-480.0,0.00021369,2]
[381916791,1756405861962,-480.0,0.00021369,2]
[381916792,1756405861972,-1034.72,0.00021369,2]
[381916793,1756405861981,-480.0,0.00021369,2]
[381916794,1756405861991,-480.0,0.00021369,2]
[381916795,1756405862000,-655.73,0.00021369,2]
[381916796,1756405862010,-480.0,0.00021369,2]